[Event "44th Chess Olympiad Open 2022"]
[Site "Chennai"]
[Date "2022.08.09"]
[Round "11.81"]
[White "Wane, Al Hassane"]
[Black "Nadan, Avinesh"]
[Result "1-0"]
[ECO "D15"]
[WhiteElo "1750"]
[BlackElo "1540"]
[Annotator "NA RC COMBH"]
[PlyCount "109"]
[EventDate "2022.07.29"]
[EventType "team-tourn"]
[EventCountry "IND"]
[SourceTitle "playchess.com"]
[Source "ChessBase"]
[SourceQuality "1"]
[WhiteTeam "Senegal"]
[BlackTeam "Fiji"]
[WhiteTeamCountry "SEN"]
[BlackTeamCountry "FIJ"]
[TimeControl "40/5400+30:1800+30"]

1. d4 {[%emt 0:00:02]} d5 {[%emt 0:00:18]} 2. c4 {[%emt 0:00:06]} Nf6 {[%emt 0:00:25]} 3. Nf3 {[%emt 0:00:07]} h6 {[%emt 0:02:11]} 4. Nc3 {[%emt 0:00:12]} c6 {[%emt 0:00:23]} 5. e3 {[%emt 0:00:13]} Bf5 {[%emt 0:00:13]} 6. cxd5 {[%emt 0:00:43]} cxd5 {[%emt 0:00:59]} 7. Be2 {[%emt 0:02:41]} Nc6 {[%emt 0:00:56]} 8. Qb3 {[%emt 0:01:47]} Rb8 {[%emt 0:01:14]} 9. O-O {[%emt 0:01:06]} e6 {[%emt 0:00:20]} 10. Ne5 {[%emt 0:05:42]} Be7 {[%emt 0:02:54]} 11. Qa4 {[%emt 0:05:37]} Qb6 {[%emt 0:02:35]} 12. f3 {[%emt 0:16:28]} O-O {[%emt 0:00:26]} 13. Nxc6 {[%emt 0:00:13]} bxc6 {[%emt 0:01:07]} 14. Kh1 {[%emt 0:01:23]} c5 {[%emt 0:05:53]} 15. dxc5 {[%emt 0:00:28]} Bxc5 {[%emt 0:00:53]} 16. e4 {[%emt 0:00:10]} Bg6 {[%emt 0:01:17]} 17. e5 {[%emt 0:03:11]} Ne8 {[%emt 0:00:27]} 18. Qg4 {[%emt 0:01:58]} Qc7 {[%emt 0:01:54]} 19. h4 {[%emt 0:03:12]} Qxe5 {[%emt 0:01:19]} 20. Bf4 {[%emt 0:00:17]} Qf6 {[%emt 0:03:29]} 21. Bxb8 {[%emt 0:00:07]} Be3 {[%emt 0:05:14]} 22. f4 {[%emt 0:03:20]} Bf5 {[%emt 0:02:19]} 23. Qg3 {[%emt 0:00:31]} Bb6 {[%emt 0:04:30]} 24. Be5 {[%emt 0:03:29]} Qe7 {[%emt 0:00:16]} 25. Na4 {[%emt 0:01:36]} Bd8 {[%emt 0:02:49]} 26. h5 {[%emt 0:01:25]} Qb4 {[%emt 0:00:38]} 27. Qb3 {[%emt 0:04:29]} Qe7 {[%emt 0:02:14]} 28. Qg3 {[%emt 0:03:31]} f6 {[%emt 0:00:40]} 29. Bc3 {[%emt 0:00:27]} Nd6 {[%emt 0:03:14]} 30. Bb4 {[%emt 0:04:34]} Qd7 {[%emt 0:01:58]} 31. Nc5 {[%emt 0:00:34]} Qc8 {[%emt 0:04:16]} 32. Rac1 {[%emt 0:00:35]} Be7 {[%emt 0:05:25]} 33. Bg4 {[%emt 0:02:23]} Qe8 {[%emt 0:06:54]} 34. a3 {[%emt 0:05:08]} Bxg4 {[%emt 0:04:24]} 35. Qxg4 {[%emt 0:00:29]} f5 {[%emt 0:00:30]} 36. Qg6 {[%emt 0:00:28]} Bf6 {[%emt 0:10:39]} 37. Qxe8 {[%emt 0:01:10]} Rxe8 {[%emt 0:00:10]} 38. Nd3 {[%emt 0:00:27]} Ne4 {[%emt 0:00:34]} 39. Rf3 {[%emt 0:01:06]} Ra8 {[%emt 0:03:19]} 40. Ne5 {[%emt 0:04:23]} a5 {[%emt 0:02:56]} 41. Be1 {[%emt 0:30:27]} a4 {[%emt 0:36:41]} 42. Rc6 {[%emt 0:01:49]} Bxe5 {[%emt 0:03:11]} 43. fxe5 {[%emt 0:00:22]} Rb8 {[%emt 0:01:24]} 44. Bb4 {[%emt 0:00:20]} Kh7 {[%emt 0:05:54]} 45. Rxe6 {[%emt 0:00:30]} Ng5 {[%emt 0:00:40]} 46. Ra6 {[%emt 0:01:13]} Nxf3 {[%emt 0:00:38]} 47. gxf3 {[%emt 0:00:10]} Rd8 {[%emt 0:00:56]} 48. Rd6 {[%emt 0:00:26]} Rc8 {[%emt 0:00:49]} 49. Bc3 {[%emt 0:00:49]} Rc4 {[%emt 0:00:29]} 50. Rxd5 {[%emt 0:00:30]} Rh4+ {[%emt 0:01:30]} 51. Kg2 {[%emt 0:00:15]} Rxh5 {[%emt 0:00:22]} 52. e6 {[%emt 0:00:06]} Rg5+ {[%emt 0:00:00]} 53. Kf2 {[%emt 0:00:00]} Rg6 {[%emt 0:00:00]} 54. e7 {[%emt 0:00:00]} Re6 {[%emt 0:00:00]} 55. Re5 {[%emt 0:00:00]} 1-0

[Event "44th Chess Olympiad Open 2022"]
[Site "Chennai"]
[Date "2022.08.09"]
[Round "11.81"]
[White "Terubea, Ronald"]
[Black "Badji, Sekou Aransbene"]
[Result "1-0"]
[ECO "C25"]
[WhiteElo "1742"]
[BlackElo "1732"]
[Annotator "NA RC COMBH"]
[PlyCount "89"]
[EventDate "2022.07.29"]
[EventType "team-tourn"]
[EventCountry "IND"]
[SourceTitle "playchess.com"]
[Source "ChessBase"]
[SourceQuality "1"]
[WhiteTeam "Fiji"]
[BlackTeam "Senegal"]
[WhiteTeamCountry "FIJ"]
[BlackTeamCountry "SEN"]
[TimeControl "40/5400+30:1800+30"]

1. e4 {[%emt 0:00:20]} d6 {[%emt 0:02:03]} 2. Nc3 {[%emt 0:00:12]} c6 {[%emt 0:00:22]} 3. Bc4 {[%emt 0:00:31]} e5 {[%emt 0:03:29]} 4. Nf3 {[%emt 0:00:47]} h6 {[%emt 0:01:26]} 5. d4 {[%emt 0:00:16]} Qc7 {[%emt 0:00:13]} 6. Be3 {[%emt 0:01:29]} Nf6 {[%emt 0:00:09]} 7. h3 {[%emt 0:00:28]} Be7 {[%emt 0:00:15]} 8. O-O {[%emt 0:00:48]} b5 {[%emt 0:01:03]} 9. Bd3 {[%emt 0:00:40]} b4 {[%emt 0:04:12]} 10. Ne2 {[%emt 0:00:38]} Nbd7 {[%emt 0:00:33]} 11. Ng3 {[%emt 0:01:14]} Nf8 {[%emt 0:00:35]} 12. a3 {[%emt 0:00:28]} bxa3 {[%emt 0:00:25]} 13. Rxa3 {[%emt 0:00:16]} Ng6 {[%emt 0:06:08]} 14. Qa1 {[%emt 0:00:53]} c5 {[%emt 0:03:00]} 15. dxe5 {[%emt 0:01:15]} Nxe5 {[%emt 0:02:38]} 16. Nxe5 {[%emt 0:00:18]} dxe5 {[%emt 0:00:13]} 17. Bc4 {[%emt 0:00:26]} O-O {[%emt 0:00:25]} 18. Ra5 {[%emt 0:04:00]} Bd6 {[%emt 0:05:11]} 19. Rd1 {[%emt 0:05:51]} Re8 {[%emt 0:06:38]} 20. Bxf7+ {[%emt 0:01:08]} Kxf7 {[%emt 0:02:11]} 21. Nf5 {[%emt 0:00:42]} Bxf5 {[%emt 0:00:48]} 22. exf5 {[%emt 0:00:06]} Kf8 {[%emt 0:02:47]} 23. Rxd6 {[%emt 0:01:01]} Nd7 {[%emt 0:03:30]} 24. Raa6 {[%emt 0:01:30]} Nb6 {[%emt 0:02:26]} 25. Qa5 {[%emt 0:04:37]} Rec8 {[%emt 0:01:32]} 26. Rd1 {[%emt 0:02:24]} Nd7 {[%emt 0:05:09]} 27. Qc3 {[%emt 0:01:18]} Nb6 {[%emt 0:02:55]} 28. b4 {[%emt 0:01:56]} c4 {[%emt 0:01:22]} 29. Qa3 {[%emt 0:01:16]} Qb7 {[%emt 0:01:50]} 30. b5+ {[%emt 0:02:41]} Kg8 {[%emt 0:01:51]} 31. Qd6 {[%emt 0:00:44]} Qe4 {[%emt 0:12:00]} 32. Qg6 {[%emt 0:04:38]} Qxc2 {[%emt 0:04:47]} 33. Rd2 {[%emt 0:00:18]} Qb1+ {[%emt 0:00:48]} 34. Kh2 {[%emt 0:00:09]} Qxb5 {[%emt 0:00:13]} 35. Ra1 {[%emt 0:02:58]} Qe8 {[%emt 0:08:21]} 36. Qg3 {[%emt 0:01:26]} Rc6 {[%emt 0:04:46]} 37. Rda2 {[%emt 0:01:41]} Nd5 {[%emt 0:05:53]} 38. Rxa7 {[%emt 0:02:09]} Rxa7 {[%emt 0:00:12]} 39. Rxa7 {[%emt 0:00:07]} Rc7 {[%emt 0:04:06]} 40. Ra5 {[%emt 0:01:51]} Nxe3 {[%emt 0:02:27]} 41. Qxe3 {[%emt 0:30:47]} c3 {[%emt 0:02:37]} 42. Rxe5 {[%emt 0:00:00]} Qc6 {[%emt 0:02:24]} 43. Re6 {[%emt 0:00:00]} Qc5 {[%emt 0:01:11]} 44. Re8+ {[%emt 0:00:00]} Kh7 {[%emt 0:00:24]} 45. Qe6 {[%emt 0:00:00]} 1-0

[Event "44th Chess Olympiad Open 2022"]
[Site "Chennai"]
[Date "2022.08.09"]
[Round "11.81"]
[White "Jaiswal Prashant S"]
[Black "Lesbros Bernard"]
[Result "0-1"]
[ECO "B34"]
[WhiteElo "1683"]
[BlackElo "1865"]
[Annotator "NA RC COMBH"]
[PlyCount "104"]
[EventDate "2022.07.29"]
[EventType "team-tourn"]
[EventCountry "IND"]
[SourceTitle "playchess.com"]
[Source "ChessBase"]
[SourceQuality "1"]
[WhiteTeam "India"]
[BlackTeam "Senegal"]
[WhiteTeamCountry "IND"]
[BlackTeamCountry "SEN"]
[TimeControl "40/5400+30:1800+30"]

1. e4 {[%emt 0:00:15]} c5 {[%emt 0:00:07]} 2. Nf3 {[%emt 0:00:11]} Nc6 {[%emt 0:00:09]} 3. d4 {[%emt 0:00:59]} cxd4 {[%emt 0:00:07]} 4. Nxd4 {[%emt 0:00:08]} g6 {[%emt 0:00:09]} 5. Be2 {[%emt 0:03:29]} Bg7 {[%emt 0:00:24]} 6. Nxc6 {[%emt 0:00:14]} bxc6 {[%emt 0:00:20]} 7. O-O {[%emt 0:01:04]} d6 {[%emt 0:01:45]} 8. c3 {[%emt 0:01:17]} Rb8 {[%emt 0:04:35]} 9. Qc2 {[%emt 0:01:38]} Nf6 {[%emt 0:07:07]} 10. Be3 {[%emt 0:01:31]} Qc7 {[%emt 0:01:13]} 11. h3 {[%emt 0:03:44]} O-O {[%emt 0:01:59]} 12. Nd2 {[%emt 0:00:15]} d5 {[%emt 0:03:50]} 13. exd5 {[%emt 0:06:14]} cxd5 {[%emt 0:03:33]} 14. Rac1 {[%emt 0:05:42]} Bf5 {[%emt 0:01:51]} 15. Qd1 {[%emt 0:06:42]} Rxb2 {[%emt 0:02:43]} 16. c4 {[%emt 0:00:24]} Qa5 {[%emt 0:08:07]} 17. cxd5 {[%emt 0:01:54]} Qxd5 {[%emt 0:11:02]} 18. Bc4 {[%emt 0:03:59]} Qa5 {[%emt 0:06:37]} 19. Bxf7+ {[%emt 0:11:44]} Rxf7 {[%emt 0:03:17]} 20. Nc4 {[%emt 0:00:16]} Qxa2 {[%emt 0:00:33]} 21. Nxb2 {[%emt 0:00:10]} Qxb2 {[%emt 0:00:49]} 22. Bxa7 {[%emt 0:00:09]} Qb7 {[%emt 0:03:33]} 23. Bd4 {[%emt 0:10:13]} Bh6 {[%emt 0:08:08]} 24. Be3 {[%emt 0:01:11]} Bxe3 {[%emt 0:00:35]} 25. fxe3 {[%emt 0:00:11]} e6 {[%emt 0:03:53]} 26. Qd8+ {[%emt 0:06:02]} Rf8 {[%emt 0:05:45]} 27. Qd4 {[%emt 0:01:33]} Qd5 {[%emt 0:01:58]} 28. Qxd5 {[%emt 0:05:42]} Nxd5 {[%emt 0:04:19]} 29. Rce1 {[%emt 0:00:12]} Be4 {[%emt 0:00:53]} 30. Rxf8+ {[%emt 0:00:43]} Kxf8 {[%emt 0:01:08]} 31. Kf2 {[%emt 0:02:22]} Kg7 {[%emt 0:01:01]} 32. Ra1 {[%emt 0:02:39]} Kf6 {[%emt 0:02:11]} 33. Ra7 {[%emt 0:03:22]} h5 {[%emt 0:00:37]} 34. g3 {[%emt 0:00:36]} Bf5 {[%emt 0:01:03]} 35. h4 {[%emt 0:00:54]} Be4 {[%emt 0:00:57]} 36. Ra4 {[%emt 0:03:37]} Kf5 {[%emt 0:01:12]} 37. Rc4 {[%emt 0:02:13]} Nf6 {[%emt 0:02:01]} 38. Ke1 {[%emt 0:08:52]} Kg4 {[%emt 0:01:50]} 39. Kf2 {[%emt 0:00:22]} Kh3 {[%emt 0:00:40]} 40. Rb4 {[%emt 0:03:57]} Bd5 {[%emt 0:03:33]} 41. e4 {[%emt 0:32:46]} Nxe4+ {[%emt 0:30:39]} 42. Kg1 {[%emt 0:01:13]} Nxg3 {[%emt 0:01:14]} 43. Kf2 {[%emt 0:00:00]} Nf5 {[%emt 0:00:00]} 44. Ra4 {[%emt 0:00:00]} Nxh4 {[%emt 0:00:00]} 45. Ke3 {[%emt 0:00:00]} Nf5+ {[%emt 0:00:00]} 46. Kf4 {[%emt 0:00:00]} Kh4 {[%emt 0:00:00]} 47. Ke5+ {[%emt 0:00:00]} Kg5 {[%emt 0:00:00]} 48. Ra1 {[%emt 0:00:00]} h4 {[%emt 0:00:00]} 49. Rg1+ {[%emt 0:00:00]} Ng3 {[%emt 0:00:00]} 50. Kd4 {[%emt 0:00:00]} Kf4 {[%emt 0:00:00]} 51. Kd3 {[%emt 0:00:00]} h3 {[%emt 0:00:00]} 52. Kd2 {[%emt 0:00:00]} h2 {[%emt 0:00:00]} 0-1

[Event "44th Chess Olympiad Open 2022"]
[Site "Chennai"]
[Date "2022.08.09"]
[Round "11.81"]
[White "Diop, Wara"]
[Black "Prakash, Prashil"]
[Result "1-0"]
[ECO "C41"]
[WhiteElo "1636"]
[BlackElo "1514"]
[Annotator "NA RC COMBH"]
[PlyCount "117"]
[EventDate "2022.07.29"]
[EventType "team-tourn"]
[EventCountry "IND"]
[SourceTitle "playchess.com"]
[Source "ChessBase"]
[SourceQuality "1"]
[WhiteTeam "Senegal"]
[BlackTeam "Fiji"]
[WhiteTeamCountry "SEN"]
[BlackTeamCountry "FIJ"]
[TimeControl "40/5400+30:1800+30"]

1. e4 {[%emt 0:00:04]} e5 {[%emt 0:01:24]} 2. Nf3 {[%emt 0:00:10]} d6 {[%emt 0:01:35]} 3. Bc4 {[%emt 0:00:11]} Be7 {[%emt 0:01:58]} 4. c3 {[%emt 0:01:23]} Be6 {[%emt 0:03:14]} 5. Bxe6 {[%emt 0:00:20]} fxe6 {[%emt 0:01:38]} 6. Qb3 {[%emt 0:03:39]} Qc8 {[%emt 0:00:41]} 7. d4 {[%emt 0:00:41]} Nc6 {[%emt 0:03:23]} 8. dxe5 {[%emt 0:00:20]} dxe5 {[%emt 0:00:15]} 9. Nbd2 {[%emt 0:06:21]} Bf6 {[%emt 0:02:24]} 10. Nc4 {[%emt 0:05:29]} Nge7 {[%emt 0:01:09]} 11. Be3 {[%emt 0:04:12]} b6 {[%emt 0:06:24]} 12. a4 {[%emt 0:08:52]} Qa6 {[%emt 0:07:39]} 13. O-O {[%emt 0:04:09]} O-O {[%emt 0:01:25]} 14. Ncxe5 {[%emt 0:02:39]} Nxe5 {[%emt 0:03:35]} 15. Nxe5 {[%emt 0:00:21]} Qc8 {[%emt 0:00:40]} 16. Nd3 {[%emt 0:03:06]} Kh8 {[%emt 0:03:08]} 17. Rfd1 {[%emt 0:00:51]} e5 {[%emt 0:01:52]} 18. Nb4 {[%emt 0:02:10]} Qg4 {[%emt 0:05:59]} 19. f3 {[%emt 0:02:57]} Qg6 {[%emt 0:01:13]} 20. Rd7 {[%emt 0:02:26]} Bh4 {[%emt 0:03:51]} 21. Qd1 {[%emt 0:02:04]} a5 {[%emt 0:03:28]} 22. Nd5 {[%emt 0:04:20]} Nxd5 {[%emt 0:04:59]} 23. Rxd5 {[%emt 0:01:39]} Qe6 {[%emt 0:06:43]} 24. Qe2 {[%emt 0:02:20]} h6 {[%emt 0:00:57]} 25. Rad1 {[%emt 0:00:25]} Rad8 {[%emt 0:03:14]} 26. c4 {[%emt 0:01:10]} Kh7 {[%emt 0:04:23]} 27. Qc2 {[%emt 0:01:20]} Qg6 {[%emt 0:00:28]} 28. Qe2 {[%emt 0:03:09]} Qe6 {[%emt 0:00:17]} 29. c5 {[%emt 0:01:50]} Qc6 {[%emt 0:09:06]} 30. cxb6 {[%emt 0:02:04]} cxb6 {[%emt 0:00:33]} 31. b3 {[%emt 0:03:51]} Qe6 {[%emt 0:01:06]} 32. Qa6 {[%emt 0:01:33]} Rxd5 {[%emt 0:04:59]} 33. exd5 {[%emt 0:01:04]} Qg6 {[%emt 0:01:31]} 34. Qd3 {[%emt 0:04:20]} Rf6 {[%emt 0:04:02]} 35. d6 {[%emt 0:01:12]} Re6 {[%emt 0:02:57]} 36. Qxg6+ {[%emt 0:02:59]} Kxg6 {[%emt 0:00:04]} 37. d7 {[%emt 0:00:08]} Bd8 {[%emt 0:00:33]} 38. Bf2 {[%emt 0:04:16]} Kf7 {[%emt 0:00:22]} 39. Bg3 {[%emt 0:01:28]} g5 {[%emt 0:00:12]} 40. Kf2 {[%emt 0:02:33]} Kf6 {[%emt 0:00:33]} 41. Ke3 {[%emt 0:32:19]} Kf5 {[%emt 0:32:13]} 42. Rd5 {[%emt 0:00:53]} Re7 {[%emt 0:01:26]} 43. Bf2 {[%emt 0:02:53]} Ke6 {[%emt 0:00:20]} 44. Ke4 {[%emt 0:01:09]} Rxd7 {[%emt 0:01:45]} 45. Rxd7 {[%emt 0:01:57]} Kxd7 {[%emt 0:00:03]} 46. Kxe5 {[%emt 0:00:48]} Bc7+ {[%emt 0:03:16]} 47. Kf5 {[%emt 0:00:32]} Kc6 {[%emt 0:00:00]} 48. Kg6 {[%emt 0:00:00]} b5 {[%emt 0:00:00]} 49. Kxh6 {[%emt 0:00:00]} Bd8 {[%emt 0:00:00]} 50. g3 {[%emt 0:00:00]} b4 {[%emt 0:00:00]} 51. h4 {[%emt 0:00:00]} gxh4 {[%emt 0:00:00]} 52. gxh4 {[%emt 0:00:00]} Kd6 {[%emt 0:00:00]} 53. Kg6 {[%emt 0:00:00]} Ke7 {[%emt 0:00:00]} 54. Bc5+ {[%emt 0:00:00]} Ke6 {[%emt 0:00:00]} 55. h5 {[%emt 0:00:00]} Kd5 {[%emt 0:00:00]} 56. Be3 {[%emt 0:00:00]} Bc7 {[%emt 0:00:00]} 57. h6 {[%emt 0:00:00]} Be5 {[%emt 0:00:00]} 58. h7 {[%emt 0:00:00]} Ke6 {[%emt 0:00:00]} 59. Bh6 {[%emt 0:00:00]} 1-0

[Event "44th Chess Olympiad Open 2022"]
[Site "Chennai"]
[Date "2022.08.09"]
[Round "11.82"]
[White "Kibrom Weldegebriel Beraki"]
[Black "Volpinari, Danilo"]
[Result "1/2-1/2"]
[ECO "D15"]
[WhiteElo "1793"]
[BlackElo "1955"]
[Annotator "TA"]
[PlyCount "112"]
[EventDate "2022.07.29"]
[EventType "team-tourn"]
[EventCountry "IND"]
[SourceTitle "playchess.com"]
[Source "ChessBase"]
[SourceQuality "1"]
[WhiteTeam "Eritrea"]
[BlackTeam "San Marino"]
[WhiteTeamCountry "ERI"]
[BlackTeamCountry "SMR"]
[TimeControl "40/5400+30:1800+30"]

{[%evp 10,112,58,57,49,60,61,12,45,45,47,37,62,17,24,16,18,-6,0,0,-7,-4,0,-15,-8,-35,-36,-27,-27,-30,-35,-35,-37,-30,-27,-77,-27,-27,0,-20,-27,-72,-33,-22,-10,-24,0,-10,-11,-27,-9,-9,0,0,0,0,0,0,50,74,62,68,94,97,95,109,100,99,102,0,0,0,0,0,0,0,0,0,0,0,0,0,0,-8,-8,-8,-7,-8,-8,-11,-2,-12,-5,-8,0,-8,0,-12,-10,-10,-5,-18,0,-8,0]} 1. d4 {[%emt 0:03:52]} d5 {[%emt 0:00:18]} 2. c4 {[%emt 0:00:13]} c6 {[%emt 0:00:27]} 3. Nc3 {[%emt 0:00:16]} Nf6 {[%emt 0:00:58]} 4. Nf3 {[%emt 0:00:13]} dxc4 {[%emt 0:01:45]} 5. e4 {[%emt 0:01:08]} Bg4 {[%emt 0:01:49]} 6. Bxc4 {[%emt 0:01:22]} e6 {[%emt 0:02:22] D15: Slav Defence: 4 Nc3 a6 and gambit lines after 4 Nc3 dxc4.} 7. Be3 {[%emt 0:03:23]} Bb4 {[%emt 0:01:29]} 8. Bd3 {[%emt 0:01:39]} (8. Qb3 $14 {feels stronger.} Bxc3+ 9. bxc3) 8... Nbd7 {[%emt 0:03:38]} 9. O-O {[%emt 0:02:19]} O-O {[%emt 0:03:47]} 10. a3 {[%emt 0:08:25]} Be7 {[%emt 0:03:00][%cal Oe6e5]} 11. e5 {[%emt 0:08:21]} Nd5 {[%emt 0:04:44] [#]} 12. Nxd5 $146 {[%emt 0:00:30]} ({Predecessor:} 12. Qc2 h6 13. Nd2 c5 14. Nxd5 cxd4 15. Nxe7+ Qxe7 16. Bxd4 {1-0 (17) Rakay,K (1998)-Mikus,T (1917) Slovakia 2014}) 12... cxd5 {[%emt 0:10:57]} 13. Be2 {[%emt 0:07:03]} Bf5 {[%emt 0:02:59]} 14. Bd3 {[%emt 0:02:58]} Bxd3 {[%emt 0:02:42]} 15. Qxd3 {[%emt 0:00:12]} Nb6 {[%emt 0:01:40][%cal Bd7b6,Bb6c4,Bc4d2][%mdl 32]} 16. Bd2 {[%emt 0:01:58]} Nc4 {[%emt 0:05:32]} 17. b3 {[%emt 0:11:49]} Nxd2 {[%emt 0:01:48]} 18. Qxd2 {[%emt 0:06:07]} Qb6 {[%emt 0:06:16]} 19. Qb2 {[%emt 0:01:44]} Rfc8 {[%emt 0:05:03]} 20. Rfc1 {[%emt 0:03:08]} Rc6 {[%emt 0:01:11]} 21. Rxc6 {[%emt 0:01:26]} bxc6 {[%emt 0:00:09]} 22. Qc2 {[%emt 0:14:00]} (22. Rc1 $11 {keeps the balance.}) 22... Rb8 {[%emt 0:01:05]} ({Black should play} 22... Rc8 $17) 23. b4 $11 {[%emt 0:01:02]} Qa6 {[%emt 0:11:10] White must now prevent ...Rxb4.} 24. Qc3 {[%emt 0:01:18]} Qa4 {[%emt 0:04:14][%cal Oa7a5]} 25. h3 {[%emt 0:04:06]} g6 {[%emt 0:00:50][%cal Oa7a5]} (25... a5 $5) 26. Rc1 {[%emt 0:02:19]} Rb6 {[%emt 0:00:07]} 27. Ne1 {[%emt 0:03:26]} Bg5 {[%emt 0:03:13]} 28. Ra1 {[%emt 0:02:01]} a5 {[%emt 0:08:46][%cal Ra5b4]} 29. bxa5 {[%emt 0:02:41]} Ra6 {[%emt 0:00:39]} 30. Nd3 {[%emt 0:01:44] [#] Hoping for Nc5.} Qxa5 {[%emt 0:01:39]} 31. Qxa5 {[%emt 0:01:07]} Rxa5 {[%emt 0:00:01][%mdl 4096] Endgame KRB-KRN} 32. a4 {[%emt 0:00:52]} Bd2 {[%emt 0:04:10]} 33. Ra3 {[%emt 0:00:21] Prevents Bc3.} f6 {[%emt 0:02:16]} (33... Kf8 $11) 34. exf6 $14 {[%emt 0:02:06] Strongly threatening Ne5.} Kf7 {[%emt 0:01:00]} 35. Kf1 {[%emt 0:01:36]} Bh6 {[%emt 0:01:19]} 36. Ne5+ {[%emt 0:00:15]} Kxf6 {[%emt 0:02:32]} 37. Nxc6 {[%emt 0:00:06]} Ra6 {[%emt 0:00:36]} 38. Nb4 {[%emt 0:00:22] White is more active.} Ra8 {[%emt 0:00:39]} 39. Ke2 {[%emt 0:00:57]} (39. Nd3 $16) 39... Bf8 $11 {[%emt 0:00:12] The position is equal.} 40. Rf3+ {[%emt 0:01:28]} Kg7 {[%emt 0:01:05]} 41. Nc6 {[%emt 0:01:03]} Rxa4 {[%emt 0:05:29]} 42. Nd8 {[%emt 0:04:12]} Ra2+ {[%emt 0:02:06]} 43. Kd1 {[%emt 0:01:24]} Ra6 {[%emt 0:00:45]} 44. g4 {[%emt 0:10:04]} Rd6 {[%emt 0:07:16]} 45. Nf7 {[%emt 0:02:15]} ({Don't go for} 45. Rf7+ $2 Kg8 46. Rxf8+ Kxf8 $19) 45... Ra6 {[%emt 0:00:59]} 46. Ne5 {[%emt 0:05:58]} Ra4 {[%emt 0:03:02]} 47. Rd3 {[%emt 0:00:41]} Bd6 {[%emt 0:02:01]} 48. Nf3 {[%emt 0:00:50]} Ra2 {[%emt 0:01:21]} 49. Ke1 {[%emt 0:02:17]} h6 {[%emt 0:00:49]} 50. h4 {[%emt 0:02:07]} Ra1+ {[%emt 0:01:03]} 51. Ke2 {[%emt 0:00:03]} Bf4 {[%emt 0:01:01]} 52. Rb3 {[%emt 0:00:31]} Kf6 {[%emt 0:04:28]} 53. Rb6 {[%emt 0:00:36]} Ra2+ {[%emt 0:01:13]} 54. Kf1 {[%emt 0:00:29]} Ra4 {[%emt 0:03:10]} 55. Ke2 {[%emt 0:00:30]} Ra3 {[%emt 0:01:03]} 56. Rb7 {[%emt 0:01:07]} Ra2+ {[%emt 0:00:38] Weighted Error Value: White=0.10 (very precise) /Black=0.08 (flawless)} 1/2-1/2

[Event "44th Chess Olympiad Open 2022"]
[Site "Chennai"]
[Date "2022.08.09"]
[Round "11.82"]
[White "Samuel Merhawi Gebrehiwet"]
[Black "Righi, Ezio"]
[Result "1/2-1/2"]
[ECO "D30"]
[WhiteElo "1616"]
[BlackElo "1912"]
[Annotator "TA"]
[PlyCount "85"]
[EventDate "2022.07.29"]
[EventType "team-tourn"]
[EventCountry "IND"]
[SourceTitle "playchess.com"]
[Source "ChessBase"]
[SourceQuality "1"]
[WhiteTeam "Eritrea"]
[BlackTeam "San Marino"]
[WhiteTeamCountry "ERI"]
[BlackTeamCountry "SMR"]
[TimeControl "40/5400+30:1800+30"]

{[%evp 16,85,17,6,18,0,18,0,0,0,0,0,9,0,8,0,9,0,8,2,1,0,23,16,46,14,64,39,60,42,43,58,47,8,66,0,0,0,86,80,80,70,84,99,87,83,92,85,112,117,232,191,173,-80,-79,-72,-130,-69,-21,-25,-33,-33,0,0,0,0,0,0,0,0,0,0]} 1. d4 {[%emt 0:00:41]} d5 {[%emt 0:00:13]} 2. c4 {[%emt 0:00:40]} e6 {[%emt 0:00:11]} 3. Nf3 {[%emt 0:00:24]} c6 {[%emt 0:00:25]} 4. b3 {[%emt 0:01:16]} Nf6 {[%emt 0:01:45]} 5. e3 {[%emt 0:00:36]} Nbd7 {[%emt 0:01:20]} 6. Bd3 {[%emt 0:00:31]} Bd6 {[%emt 0:00:36]} 7. O-O {[%emt 0:00:55]} O-O {[%emt 0:00:30]} 8. Nbd2 {[%emt 0:00:38]} Re8 {[%emt 0:01:23]} 9. Bb2 {[%emt 0:00:24]} e5 {[%emt 0:01:50] aiming for ...e4. D30: Queen's Gambit Declined: Systems without Nc3.} 10. dxe5 {[%emt 0:02:43]} Nxe5 {[%emt 0:00:11]} 11. Nxe5 {[%emt 0:00:48]} Bxe5 {[%emt 0:00:20]} 12. Bxe5 {[%emt 0:01:47]} Rxe5 {[%emt 0:00:09]} 13. Qc2 {[%emt 0:00:53]} h6 {[%emt 0:01:27] [#]} 14. Rad1 $146 {[%emt 0:01:44]} ({Predecessor:} 14. Nf3 Re8 {½-½ (14) Bestard Borras,M (2184)-Gelabert Mari,L (2162) Palma de Mallorca 2012}) 14... Re8 {[%emt 0:03:39]} 15. h3 {[%emt 0:02:03]} Be6 {[%emt 0:00:25]} 16. Nf3 {[%emt 0:00:36][%cal Bd2f3,Bf3d4,Bd4b5][%mdl 32]} Qe7 {[%emt 0:02:12]} 17. Nd4 {[%emt 0:06:58]} dxc4 {[%emt 0:00:44]} 18. bxc4 {[%emt 0:00:34]} c5 {[%emt 0:03:14]} 19. Nb5 {[%emt 0:01:03]} Red8 {[%emt 0:03:13]} 20. e4 {[%emt 0:00:44]} Bd7 {[%emt 0:05:21]} (20... Nh5 $11) 21. Nc3 $14 {[%emt 0:01:40]} Bc6 {[%emt 0:01:31]} 22. Nd5 {[%emt 0:01:53]} Bxd5 {[%emt 0:01:00]} 23. cxd5 {[%emt 0:00:22]} a6 {[%emt 0:02:46]} 24. a4 {[%emt 0:00:19]} Rab8 {[%emt 0:03:05]} ({Black should play} 24... b5 $1 $11) 25. f4 {[%emt 0:00:14]} (25. a5 $14) 25... b5 $11 {[%emt 0:00:37] Hoping for ...c4.} 26. d6 {[%emt 0:00:10]} Qa7 {[%emt 0:02:58]} ({Don't play} 26... Rxd6 27. e5 Rxd3 28. Qxd3 $16) (26... Qxd6 $11 27. Bxb5 Qe7 28. Bxa6 Nxe4) 27. Qf2 $36 {[%emt 0:01:01][%mdl 2048] Keeping Black busy.} Qb6 {[%emt 0:02:25]} 28. e5 {[%emt 0:00:18]} Nd7 {[%emt 0:00:32]} 29. axb5 {[%emt 0:01:59] White is much more active.} axb5 {[%emt 0:00:28]} 30. Bb1 {[%emt 0:05:55]} c4 {[%emt 0:00:48]} 31. Rd4 $1 {[%emt 0:00:12]} Rbc8 {[%emt 0:02:20]} 32. Kh1 $1 {[%emt 0:06:02]} c3 {[%emt 0:02:45] [#]} (32... Rc5 $16) 33. Qc2 $1 $18 {[%emt 0:00:57] White threatens Qh7+ and mate.} Nf8 {[%emt 0:00:43] [#] Inhibits Qh7+.} 34. Qe4 {[%emt 0:01:10] [#]} (34. Re4 $1 $18) 34... c2 $1 $17 {[%emt 0:00:47]} 35. Bxc2 {[%emt 0:02:34] [#]} Rxc2 $1 {[%emt 0:00:15]} 36. f5 {[%emt 0:00:07] Against Ne6} Qc6 {[%emt 0:01:57]} (36... Rc6 $15 37. Re1 Re8) 37. e6 {[%emt 0:00:41]} Qxe4 {[%emt 0:02:21]} ({Resist} 37... Rxd6 38. e7 Rxd4 39. Qxc6 Rxc6 40. e8=Q $16) 38. Rxe4 {[%emt 0:00:36]} fxe6 {[%emt 0:02:23]} (38... Rxd6 $2 39. e7 Rc8 40. e8=Q Rxe8 41. Rxe8 $18) 39. fxe6 {[%emt 0:00:30] Black must now prevent e7. The position is equal.} Nxe6 {[%emt 0:01:37]} 40. Rxe6 $11 {[%emt 0:00:10] KRR-KRR} Rd2 {[%emt 0:00:09]} 41. Rf5 {[%emt 0:01:34]} R2xd6 {[%emt 0:00:32]} 42. Rxd6 {[%emt 0:31:21]} Rxd6 {[%emt 0:30:05]} 43. Rxb5 {[%emt 0:00:03] Weighted Error Value: White=0.21 (precise) /Black=0.19 (very precise)} 1/2-1/2